Cogmind - Beta 12 @@@ ROGUE MODE // 2023.03.16 @ 20:09:07 Player: inSANE Result: Self-destructed Performance ------------- Evolutions (6) 3000 Regions Visited (16) 3200 Robots Destroyed (102) 510 Value Destroyed (3922) 3922 Prototype IDs (25) 500 Alien Tech Used (0) 0 Bonus (3194) 3194 TOTAL SCORE: 14326 Bonus ------- High Alert Combat Kills 173 Follower Combat Kills 2318 Met Data Miner 300 Built Enhanced Grunts 300 A7 Reached Mainframe 300 Friendly Fire -197 Cogmind --------- Core Integrity 1034/1150 Matter 265/300 Energy 39/100 System Corruption 0% Temperature Cool (22) Movement Walking (120) Location -4/Factory Parts ------- > --- POWER (2) -------- (None) > --- PROPULSION (4) --- Enhanced Flexi-carbon Leg Enhanced Flexi-carbon Leg Myomer Leg Myomer Leg > --- UTILITY (9) ------ Advanced Power Amplifier Advanced Cryofiber Web Advanced Heat Sink Large Storage Unit Improved Sensor Array Improved Kinecellerator Centrium Medium Armor Plating Improved Corruption Screen > --- WEAPON (4) ------- Neutron Cannon KE Penetrator KE Penetrator > --- INVENTORY (15) --- Myomer Leg Advanced Heat Sink Improved Particle Charger Advanced Particle Charger Improved Weapon Cycler Phase Shifter Experimental Thermal Shield System Restoration Module Lightning Gun Wave Gun Advanced Datajack Molecular Deconstructor Ripper Peak State ------------ > --- POWER ------------ Light Angular Momentum Engine Light Angular Momentum Engine > --- PROPULSION ------- Enhanced Flexi-carbon Leg Enhanced Flexi-carbon Leg Myomer Leg Myomer Leg > --- UTILITY ---------- Advanced Power Amplifier Advanced Cryofiber Web Advanced Heat Sink Large Storage Unit Improved Sensor Array Improved Kinecellerator Improved Phase Shifter Centrium Medium Armor Plating Improved Corruption Screen > --- WEAPON ----------- Long-range Proton Cannon Neutron Cannon KE Penetrator KE Penetrator > --- INVENTORY -------- Myomer Leg Advanced Heat Sink Advanced Particle Charger Weapon Cycler Phase Shifter Experimental Thermal Shield System Restoration Module Lightning Gun Wave Gun KE Penetrator Bore Cannon Advanced Datajack Molecular Deconstructor Ripper [Rating: 123] Favorites ----------- Power Micro Nuclear Core Engine Light Angular Momentum Engine Power Core Micro Nuclear Core Reactor Light Antimatter Reactor Propulsion Armored Treads Treads Armored Treads Leg Flexi-carbon Leg Wheel Compact Wheel Utility Large Storage Unit Device Improved Heat Sink Storage Large Storage Unit Processor Improved Corruption Screen Hackware Makeshift System Shield Protection Improved Light Armor Plating Weapon Heavy Particle Gun Energy Gun Heavy Particle Gun Energy Cannon Beam Cannon Ballistic Gun Flak Gun Ballistic Cannon Bore Cannon Launcher Missile Launcher Special Weapon Plasma Cutter Slashing Weapon Katana Special Melee Weapon Advanced Datajack Build | -11 -10 -10 -10 -9 -8 -7 -7 -7 -7 -6 -6 -6 -6 -6 -5 -4 ------- Run | Jun Mat Min Exi Min Mat Fac Low Low Dat Pro Fac Ext Cet Arc Fac Fac Slots Evolved 12 | . . . . . 4 2 . . . . 2 . . . 2 2 Power 1 | . . . . . . . . . . . . . . . 1 . Propulsion 2 | . . . . . 1 . . . . . . . . . 1 . Utility 7 | . . . . . 2 2 . . . . 2 . . . . 1 Weapon 2 | . . . . . 1 . . . . . . . . . . 1 Parts Attached 185 | 6 11 5 . . 30 36 7 8 1 3 7 26 12 8 10 15 Power 12 | 1 . . . . 1 2 . . . . 1 2 2 1 1 1 Engine 6 | 1 . . . . . . . . . . . . 2 1 1 1 Core 5 | . . . . . 1 2 . . . . 1 1 . . . . Reactor 1 | . . . . . . . . . . . . 1 . . . . Propulsion 57 | 2 5 4 . . 14 15 1 . . . . 7 3 . 1 5 Treads 21 | . 2 2 . . 6 9 . . . . . 2 . . . . Leg 13 | . . . . . . . . . . . . 4 3 . 1 5 Wheel 23 | 2 3 2 . . 8 6 1 . . . . 1 . . . . Hover . | . . . . . . . . . . . . . . . . . Flight . | . . . . . . . . . . . . . . . . . Utility 51 | 1 2 1 . . 6 6 4 3 . . 3 9 3 4 4 5 Device 26 | . 1 1 . . 3 3 1 1 . . 3 3 1 1 3 5 Storage 2 | 1 1 . . . . . . . . . . . . . . . Processor 3 | . . . . . 1 1 . . . . . . . . 1 . Hackware 1 | . . . . . . . . . . . . 1 . . . . Protection 19 | . . . . . 2 2 3 2 . . . 5 2 3 . . Artifact . | . . . . . . . . . . . . . . . . . Weapon 65 | 2 4 . . . 9 13 2 5 1 3 3 8 4 3 4 4 Energy Gun 21 | 1 1 . . . 4 5 1 2 . . 1 3 1 1 1 . Energy Cannon 3 | . 1 . . . . . . . . . . . . . 1 1 Ballistic Gun 19 | 1 1 . . . 3 3 . . . 2 1 2 2 2 1 1 Ballistic Cannon 1 | . . . . . . . . . . . . 1 . . . . Launcher 9 | . . . . . 2 2 1 1 1 1 . . 1 . . . Special Weapon 2 | . 1 . . . . . . . . . . 1 . . . . Impact Weapon . | . . . . . . . . . . . . . . . . . Slashing Weapon 9 | . . . . . . 3 . 2 . . 1 1 . . 1 1 Piercing Weapon . | . . . . . . . . . . . . . . . . . Special Melee Weapon 1 | . . . . . . . . . . . . . . . . 1 Unidentified Prototypes 10 | . . 1 . . 2 1 . . . . 1 1 1 . 1 2 Parts Lost 34 | . . 1 . . 4 4 2 . . . . 9 8 1 . 5 Power 4 | . . . . . . . . . . . . 1 1 . . 2 Propulsion 9 | . . . . . 2 1 . . . . . 4 2 . . . Utility 12 | . . 1 . . 1 1 2 . . . . 3 2 1 . 1 Weapon 9 | . . . . . 1 2 . . . . . 1 3 . . 2 Highest Loss Streak 8 | . . 1 . . 1 2 1 . . . . 3 8 1 . 4 To Critical Strikes . | . . . . . . . . . . . . . . . . . Average Slot Usage (%) 93 | . 95 96 100 100 92 95 91 92 92 92 92 91 97 98 93 95 Engine 4 | . 14 14 14 14 5 . . . . . . . 5 6 5 8 Core 3 | . . . . . 3 7 7 7 7 7 6 4 . . . . Treads 3 | . . . . . 1 10 7 7 7 7 6 4 . . . . Leg 5 | . . . . . . . . . . . . 5 19 20 23 21 Wheel 10 | . 27 27 28 28 24 11 7 7 7 7 6 4 . . . . Device 19 | . 9 10 14 14 13 26 15 15 15 15 25 22 25 21 17 29 Storage 7 | . 14 14 14 14 9 7 7 7 7 7 6 6 6 6 5 5 Processor 1 | . . . . . 5 . 5 . . . . . . . 1 5 Hackware 1 | . . . . . . . . . . . . 5 6 6 3 . Protection 11 | . . . . . 2 7 16 23 23 23 20 16 12 16 17 5 Energy Gun 9 | . 2 . . . 16 14 14 14 15 15 13 11 6 6 3 . Energy Cannon 2 | . 11 14 14 14 . . . . . . . . . . 2 6 Ballistic Gun 8 | . 14 14 14 14 10 6 7 6 . 6 2 5 12 13 9 9 Naked Turns . | . . . . . . . . . . . . . . . . . Heaviest Build 86 | 12 29 29 29 29 50 48 51 51 49 47 52 53 57 67 76 86 Greatest Support 106 | 26 26 32 32 32 60 77 28 28 28 28 40 62 62 67 82 106 Greatest Overweight (x) 2 | . 1 . . . 1 2 1 1 1 1 1 1 1 1 1 1 Average Overweight (x) . | . . . . . . . 1 1 1 1 1 . . . . . Largest Inventory Capacity 15 | 8 15 15 15 15 15 15 15 15 15 15 15 15 15 15 15 15 Average Capacity 14 | 7 13 15 15 15 15 15 15 15 15 15 15 15 15 15 15 15 Most Carried 15 | 4 15 15 15 15 15 15 15 15 15 15 15 15 15 15 15 15 Average Carried 14 | 1 8 15 15 15 14 14 14 14 15 15 14 14 13 14 14 14 Final Capacity 15 | 8 15 15 15 15 15 15 15 15 15 15 15 15 15 15 15 15 Final Carried 15 | 4 15 15 15 15 14 13 15 15 15 15 15 15 15 14 15 14 Class Distribution -------------------- 28% | Tank 26% | Mutant 23% | Scavenger-Tank 7% | Scavenger-Gunner 6% | Scavenger-Mutant 5% | Skirmisher Dominant Class ---------------- Mutant | -10/Materials Mutant | -10/Mines Mutant | -10/Exiles Mutant | -9/Mines Skirmisher | -8/Materials Tank | -7/Factory Tank | -7/Lower Caves Tank | -7/Lower Caves Mutant | -7/Data Miner Tank | -6/Proximity Caves Mutant | -6/Factory Scavenger-Tank | -6/Extension Scavenger-Tank | -6/Cetus Scavenger-Tank | -6/Archives Scavenger-Tank | -5/Factory Scavenger-Gunner | -4/Factory Resources | -11 -10 -10 -10 -9 -8 -7 -7 -7 -7 -6 -6 -6 -6 -6 -5 -4 ----------- Run | Jun Mat Min Exi Min Mat Fac Low Low Dat Pro Fac Ext Cet Arc Fac Fac Matter Collected 3184 | 144 334 69 . . 366 494 91 151 . 138 38 523 364 93 140 239 Remotely 152 | . . . . . 152 . . . . . . . . . . . Salvage Created 4101 | . 591 37 . . 657 674 77 193 . 247 80 651 254 . 181 459 Parts 173 | . 37 1 . . 37 27 5 4 . 6 1 20 6 . 5 24 Haulers Intercepted 8 | . 2 . . . 4 1 . . . . . . . . . 1 Recyclers Shooed 4 | . . . . . 1 . . . . . . 2 . . 1 . Parts Field Recycled . | . . . . . . . . . . . . . . . . . Retrieved Matter . | . . . . . . . . . . . . . . . . . Parts Self-Destructed 17 | . . . . . . . 2 4 . 11 . . . . . . Prevented . | . . . . . . . . . . . . . . . . . Kills | -11 -10 -10 -10 -9 -8 -7 -7 -7 -7 -6 -6 -6 -6 -6 -5 -4 ------- Run | Jun Mat Min Exi Min Mat Fac Low Low Dat Pro Fac Ext Cet Arc Fac Fac Combat Hostiles Destroyed 81 | . 9 1 . . 16 18 4 3 . 7 2 8 7 . . 6 Melee 1 | . . . . . . . . . . . . . . . . 1 Guns 47 | . 1 . . . 12 11 1 1 . 5 2 8 6 . . . Cannons 10 | . 6 1 . . . . . . . . . . . . . 3 AOE 21 | . 2 . . . 3 6 3 2 . 2 . . 1 . . 2 Classes Destroyed 12 | . 7 . . . 2 3 . . . . . . . . . . Tunneler 1 | . 1 . . . . . . . . . . . . . . . Hauler 8 | . 2 . . . 4 1 . . . . . . . . . 1 Recycler 4 | . 1 . . . . . . . . . . 2 . . 1 . Operator 3 | . 1 . . . . . . . . . . 1 . . 1 . Watcher 4 | . 2 . . . . . . . . . . . 1 . 1 . Swarmer 26 | . 3 . . . 7 7 . 3 . 3 . 1 2 . . . Grunt 29 | . 6 1 . . 4 3 3 . . 3 1 3 2 . . 3 Brawler 4 | . . . . . . 1 1 . . 1 . . 1 . . . Duelist 1 | . . . . . . 1 . . . . . . . . . . Sentry 8 | . . . . . 3 3 . . . . . 2 . . . . Hunter 6 | . . . . . 2 . . . . . 1 2 . . . 1 Programmer 5 | . . . . . . 3 . . . . . . . . . 2 Cetus Guard 2 | . . . . . . . . . . . . . 2 . . . Guerrilla 1 | . . . . . . . . . . . . . 1 . . . Best Kill Streak 5 | . 5 1 . . 4 4 4 3 . 3 1 3 4 . 1 2 Combat Bots Only 4 | . 4 1 . . 4 4 4 3 . 3 1 3 3 . . 2 Max Kills in Single Turn 3 | . 2 1 . . 3 3 1 2 . 2 1 2 1 . 1 2 Gunslinging 1 | . . . . . 1 . . . . . . 1 . . . . Exploded 3 | . 2 . . . 3 3 1 2 . 2 . . 1 . . 2 Melee 1 | . . . . . . . . . . . . . . . . 1 Uniques/NPCs Destroyed . | . . . . . . . . . . . . . . . . . Combat | -11 -10 -10 -10 -9 -8 -7 -7 -7 -7 -6 -6 -6 -6 -6 -5 -4 -------- Run | Jun Mat Min Exi Min Mat Fac Low Low Dat Pro Fac Ext Cet Arc Fac Fac Damage Taken 7362 | . 242 125 . 34 886 892 299 63 . 127 131 1707 1191 140 206 1319 Core 779 | . 45 21 . 12 137 108 32 . . 12 18 151 127 . . 116 Absorbed by Shields 221 | . . . . . . . . . . . . 96 125 . . . Redirected to Shielding 88 | . . . . . . . . . . . 13 64 11 . . . Core Remaining (%) 81 | 100 . . . 68 75 . . . . 78 . . . 65 100 . Volleys Fired 262 | . 38 3 . . 45 38 6 2 . 11 5 54 35 2 5 18 Largest 4 | . 2 2 . . 3 3 3 3 . 3 3 3 3 3 3 4 Hottest 237 | . 80 80 . . 155 163 163 163 . 163 163 163 168 121 147 237 Shots Fired 626 | . 74 6 . . 124 96 10 4 . 28 14 116 76 5 15 58 Gun 534 | . 40 3 . . 123 93 6 3 . 27 14 105 69 5 10 36 Cannon 75 | . 34 3 . . . . . . . . . 11 . . 5 22 Launcher 17 | . . . . . 1 3 4 1 . 1 . . 7 . . . Special . | . . . . . . . . . . . . . . . . . Kinetic 272 | . 36 3 . . 45 32 2 1 . 9 4 46 44 4 10 36 Thermal 322 | . 34 3 . . 78 61 4 2 . 18 10 70 25 1 . 16 Explosive 17 | . . . . . 1 3 4 1 . 1 . . 7 . . . Electromagnetic 15 | . 4 . . . . . . . . . . . . . 5 6 Robot Hit Streak 18 | . 14 6 . . 13 18 9 2 . 7 6 17 7 3 6 5 Robot Miss Streak 8 | . 3 1 . . 5 5 4 2 . 8 2 8 5 2 1 2 Penetration Max 1 | . . . . . . 1 . . . . . . 1 . . 1 Secondary Targets 6 | . . . . . 1 . . . . . . 2 3 . . . Max Gunslinging Chain 1 | . . . . . 1 . . . . . . 1 1 . . . Shots Hit Robots 426 | . 46 4 . . 87 78 7 4 . 18 10 85 46 4 8 29 Core Hits 294 | . 24 1 . . 35 47 9 3 . 16 12 79 44 4 3 17 Critical Kills . | . . . . . . . . . . . . . . . . . Critical Parts Destroyed . | . . . . . . . . . . . . . . . . . Critical Strikes 4 | . . . . . 1 1 . . . . . 2 . . . . Burn 4 | . . . . . 1 1 . . . . . 2 . . . . Melee Attacks 23 | . . . . . . 6 . 3 . . 4 1 . . 4 5 Impact . | . . . . . . . . . . . . . . . . . Slashing 23 | . . . . . . 6 . 3 . . 4 1 . . 4 5 Piercing . | . . . . . . . . . . . . . . . . . Sneak Attacks 1 | . . . . . . . . . . . . . . . . 1 Combat Hostiles 1 | . . . . . . . . . . . . . . . . 1 Follow-up Attacks . | . . . . . . . . . . . . . . . . . Damage Inflicted 11241 | . 758 62 . . 1543 2171 590 337 . 512 215 1989 1377 78 273 1336 Guns 7343 | . 314 11 . . 1381 1696 48 22 . 326 215 1847 867 78 98 440 Cannons 1045 | . 369 51 . . . . . . . . . . . . 175 450 Explosions 2655 | . 75 . . . 162 475 542 183 . 186 . 142 510 . . 380 Melee 198 | . . . . . . . . 132 . . . . . . . 66 Ramming . | . . . . . . . . . . . . . . . . . Kinetic 3042 | . 277 11 . . 339 454 5 . . 44 50 620 626 78 98 440 Thermal 5419 | . 444 51 . . 1042 1242 43 22 . 282 165 1369 241 . . 518 Explosive 2261 | . . . . . 162 475 542 183 . 186 . . 510 . . 203 Electromagnetic 321 | . 37 . . . . . . . . . . . . . 175 109 Impact . | . . . . . . . . . . . . . . . . . Slashing 198 | . . . . . . . . 132 . . . . . . . 66 Piercing . | . . . . . . . . . . . . . . . . . Highest Corruption 1 | . 1 1 1 1 . 1 1 . . . . . . . . . Average Corruption 1 | . 1 1 1 1 . 1 1 . . . . . . . . . Corruption Purged 1 | . . . . . . . 1 . . . . . . . . . Corruption Blocked . | . . . . . . . . . . . . . . . . . Effects 8 | . 1 3 . . . 2 2 . . . . . . . . . Message Errors 1 | . . 1 . . . . . . . . . . . . . . Matter Fused 2 | . . 2 . . . . . . . . . . . . . . Heat Flow Errors 1 | . . . . . . . 1 . . . . . . . . . Energy Discharges 1 | . . . . . . . 1 . . . . . . . . . Data Loss (minor) 2 | . . . . . . 2 . . . . . . . . . . Weapon Failures 1 | . 1 . . . . . . . . . . . . . . . Overload Shots . | . . . . . . . . . . . . . . . . . Overflow Damage 245 | . . . . . 28 . 3 109 . 45 . . . . 38 22 Projectiles 38 | . . . . . . . . . . . . . . . 38 . Explosions 105 | . . . . . 28 . 3 7 . 45 . . . . . 22 Melee 102 | . . . . . . . . 102 . . . . . . . . Knockbacks . | . . . . . . . . . . . . . . . . . Impact . | . . . . . . . . . . . . . . . . . Kinetic . | . . . . . . . . . . . . . . . . . Secondary . | . . . . . . . . . . . . . . . . . Self-Inflicted Damage 352 | . 53 . . . . . 55 . . . . . 47 . . 197 Shots 6 | . 1 . . . . . 1 . . . . . 2 . . 2 Rammed . | . . . . . . . . . . . . . . . . . Targets Rammed . | . . . . . . . . . . . . . . . . . Kicked . | . . . . . . . . . . . . . . . . . Crushed . | . . . . . . . . . . . . . . . . . Highest Temperature 321 | . 168 108 . . 321 285 250 88 . 259 199 234 235 44 321 41 Average Temperature 73 | . 49 57 . . 90 104 79 49 . 121 79 54 56 26 63 21 Received Heat Transfer 1801 | . 99 90 . 18 234 189 69 . . 36 18 391 456 27 . 174 Effects 1 | . . . . . . . 1 . . . . . . . . . Energy Bleed 1 | . . . . . . . 1 . . . . . . . . . Siege Activations . | . . . . . . . . . . . . . . . . . Robots Corrupted . | . . . . . . . . . . . . . . . . . Combat Hostiles . | . . . . . . . . . . . . . . . . . Parts Fried 1 | . . . . . . . . . . . . . . . 1 . Impact Corruptions . | . . . . . . . . . . . . . . . . . Robots Melted 2 | . . . . . 1 1 . . . . . . . . . . Combat Hostiles 2 | . . . . . 1 1 . . . . . . . . . . Parts Melted 20 | . . . . . 3 9 . . . 1 2 4 1 . . . Heat Transferred 10456 | . 827 111 . . 2274 2648 87 50 . 597 374 2807 531 . . 150 Parts Sabotaged . | . . . . . . . . . . . . . . . . . Parts Stolen . | . . . . . . . . . . . . . . . . . Parts Stripped . | . . . . . . . . . . . . . . . . . Power Chain Reactions 2 | . 1 . . . . . . . . . . . . . . 1 Missiles Intercepted . | . . . . . . . . . . . . . . . . . Alert | -11 -10 -10 -10 -9 -8 -7 -7 -7 -7 -6 -6 -6 -6 -6 -5 -4 ------- Run | Jun Mat Min Exi Min Mat Fac Low Low Dat Pro Fac Ext Cet Arc Fac Fac Peak Influence 775 | . 249 53 . . 332 350 . . . . 346 526 473 334 371 775 Initial 169 | . . 22 . . . 109 . . . . 53 169 83 109 116 153 Average 205 | . 93 31 . . 112 187 . . . . 221 275 263 283 235 415 Maximum Alert Level 3 | . 1 . . . 1 1 . . . . 1 2 2 1 1 3 Low Security (%) 46 | 100 80 100 . 100 80 52 . . . . 10 17 20 23 39 11 Level 1 45 | . 19 . . . 19 47 . . . . 89 75 60 76 60 38 Level 2 6 | . . . . . . . . . . . . 7 19 . . 39 Level 3 1 | . . . . . . . . . . . . . . . . 10 Level 4 . | . . . . . . . . . . . . . . . . . Level 5 . | . . . . . . . . . . . . . . . . . High Security . | . . . . . . . . . . . . . . . . . Max Security . | . . . . . . . . . . . . . . . . . Squads Dispatched 22 | . 2 . . . 4 7 . . . . 2 3 . . 1 3 Investigation 2 | . . . . . 2 . . . . . . . . . . . Extermination 4 | . . . . . . 2 . . . . 1 . . . . 1 Reinforcement 12 | . 2 . . . 1 2 . . . . 1 3 . . 1 2 Assault . | . . . . . . . . . . . . . . . . . Garrison 4 | . . . . . 1 3 . . . . . . . . . . Intercept . | . . . . . . . . . . . . . . . . . Searches Triggered . | . . . . . . . . . . . . . . . . . Construction Impeded 1 | . . . . . . . . . . . . 1 . . . . Haulers Reinforced 1 | . . . . . . 1 . . . . . . . . . . Active Scanning Responses . | . . . . . . . . . . . . . . . . . Cargo Convoy Interrupts . | . . . . . . . . . . . . . . . . . Stealth | -11 -10 -10 -10 -9 -8 -7 -7 -7 -7 -6 -6 -6 -6 -6 -5 -4 --------- Run | Jun Mat Min Exi Min Mat Fac Low Low Dat Pro Fac Ext Cet Arc Fac Fac Distress Signals 12 | . 3 . . . 2 . . . . . . 3 1 . 1 2 Communications Jammed . | . . . . . . . . . . . . . . . . . Distress Signals . | . . . . . . . . . . . . . . . . . Times Spotted 184 | . 14 4 . 2 23 29 6 3 . 9 9 35 20 7 11 12 Peak Tracking Total 7 | . 6 2 . 2 4 5 4 3 . 3 6 5 7 2 4 5 Tactical Retreats 7 | . . . . . 1 . 1 . . . . 5 . . . . Traps | -11 -10 -10 -10 -9 -8 -7 -7 -7 -7 -6 -6 -6 -6 -6 -5 -4 ------- Run | Jun Mat Min Exi Min Mat Fac Low Low Dat Pro Fac Ext Cet Arc Fac Fac Traps Triggered 6 | . 2 . . . 1 1 . . . . . 2 . . . . Indirectly . | . . . . . . . . . . . . . . . . . Trap Hack Attempts . | . . . . . . . . . . . . . . . . . Triggered . | . . . . . . . . . . . . . . . . . Disarmed . | . . . . . . . . . . . . . . . . . Reprogrammed . | . . . . . . . . . . . . . . . . . Reused . | . . . . . . . . . . . . . . . . . Traps Extracted . | . . . . . . . . . . . . . . . . . Installed . | . . . . . . . . . . . . . . . . . Triggered . | . . . . . . . . . . . . . . . . . Machines | -11 -10 -10 -10 -9 -8 -7 -7 -7 -7 -6 -6 -6 -6 -6 -5 -4 ---------- Run | Jun Mat Min Exi Min Mat Fac Low Low Dat Pro Fac Ext Cet Arc Fac Fac Machines Disabled 20 | . . . . . . . . 1 . . 2 2 3 2 . 10 Max in Single Turn 3 | . . . . . . . . 1 . . . 1 1 1 . 3 Energy Cycler 1 | . . . . . . . . . . . . 1 . . . . Machines Repaired . | . . . . . . . . . . . . . . . . . Machines Sabotaged . | . . . . . . . . . . . . . . . . . Overloaded Fab Kills . | . . . . . . . . . . . . . . . . . Hacking | -11 -10 -10 -10 -9 -8 -7 -7 -7 -7 -6 -6 -6 -6 -6 -5 -4 --------- Run | Jun Mat Min Exi Min Mat Fac Low Low Dat Pro Fac Ext Cet Arc Fac Fac Machines Accessed 27 | . 4 . . . 8 2 1 1 4 . . 3 2 . . 2 Terminals 20 | . 4 . . . 7 2 . . . . . 3 2 . . 2 Fabricators . | . . . . . . . . . . . . . . . . . Repair Stations . | . . . . . . . . . . . . . . . . . Recycling Units . | . . . . . . . . . . . . . . . . . Scanalyzers 1 | . . . . . 1 . . . . . . . . . . . Garrison Access . | . . . . . . . . . . . . . . . . . Total Hacks 84 | . 10 . . . 19 6 1 2 30 . . 9 4 . . 3 Successful 59 | . 6 . . . 11 3 1 2 30 . . 4 2 . . . Failed 25 | . 4 . . . 8 3 . . . . . 5 2 . . 3 Catastrophic 7 | . 1 . . . . 2 . . . . . 1 1 . . 2 Database Lockouts . | . . . . . . . . . . . . . . . . . Manual 29 | . 9 . . . 12 4 . 1 . . . 2 1 . . . Terminals 49 | . 10 . . . 17 6 . . . . . 9 4 . . 3 Fabricators . | . . . . . . . . . . . . . . . . . Repair Stations . | . . . . . . . . . . . . . . . . . Recycling Units . | . . . . . . . . . . . . . . . . . Scanalyzers 2 | . . . . . 2 . . . . . . . . . . . Garrison Access . | . . . . . . . . . . . . . . . . . Terminal Hacks 46 | . 3 . . . 4 1 1 2 30 . . 3 2 . . . Record 14 | . . . . . . . . 2 11 . . . 1 . . . Part Schematic 11 | . . . . . . . . . 11 . . . . . . . Robot Schematic 5 | . . . . . . . . . 5 . . . . . . . Robot Analysis 1 | . . . . . . 1 . . . . . . . . . . Prototype ID Bank 6 | . 1 . . . 2 . . . 3 . . . . . . . Open Door 2 | . . . . . . . 1 . . . . . 1 . . . Alert Level 3 | . 1 . . . 1 . . . . . . 1 . . . . Unreport Threat 4 | . 1 . . . 1 . . . . . . 2 . . . . Fabricator Hacks . | . . . . . . . . . . . . . . . . . Repair Station Hacks . | . . . . . . . . . . . . . . . . . Recycling Unit Hacks . | . . . . . . . . . . . . . . . . . Scanalyzer 1 | . . . . . 1 . . . . . . . . . . . Insert Component 1 | . . . . . 1 . . . . . . . . . . . Garrison Access Hacks . | . . . . . . . . . . . . . . . . . Unauthorized Hacks 12 | . 3 . . . 6 2 . . . . . 1 . . . . Terminals 12 | . 3 . . . 6 2 . . . . . 1 . . . . Botnet 12 | . 3 . . . 6 2 . . . . . 1 . . . . Fabricators . | . . . . . . . . . . . . . . . . . Repair Stations . | . . . . . . . . . . . . . . . . . Recycling Units . | . . . . . . . . . . . . . . . . . Scanalyzers . | . . . . . . . . . . . . . . . . . Garrison Access . | . . . . . . . . . . . . . . . . . Data Cores Recovered . | . . . . . . . . . . . . . . . . . Used . | . . . . . . . . . . . . . . . . . Hacking Detections 19 | . 3 . . . 8 2 . . . . . 3 1 . . 2 Full Trace Events 1 | . . . . . 1 . . . . . . . . . . . Feedback Events . | . . . . . . . . . . . . . . . . . Feedback Blocked . | . . . . . . . . . . . . . . . . . Robot Schematics Acquired 5 | . . . . . . . . . 5 . . . . . . . Robots Built . | . . . . . . . . . . . . . . . . . Authchips . | . . . . . . . . . . . . . . . . . Time . | . . . . . . . . . . . . . . . . . Total Robot Build Rating . | . . . . . . . . . . . . . . . . . Part Schematics Acquired 11 | . . . . . . . . . 11 . . . . . . . Parts Built . | . . . . . . . . . . . . . . . . . Authchips . | . . . . . . . . . . . . . . . . . Time . | . . . . . . . . . . . . . . . . . Total Part Build Rating . | . . . . . . . . . . . . . . . . . Parts Repaired . | . . . . . . . . . . . . . . . . . Time . | . . . . . . . . . . . . . . . . . Parts Recycled . | . . . . . . . . . . . . . . . . . Recycled Matter . | . . . . . . . . . . . . . . . . . Retrieved Matter . | . . . . . . . . . . . . . . . . . Retrieved Components . | . . . . . . . . . . . . . . . . . Parts Scanalyzed 1 | . . . . . 1 . . . . . . . . . . . Part Schematics Acquired . | . . . . . . . . . . . . . . . . . Parts Damaged . | . . . . . . . . . . . . . . . . . Bothacking | -11 -10 -10 -10 -9 -8 -7 -7 -7 -7 -6 -6 -6 -6 -6 -5 -4 ------------ Run | Jun Mat Min Exi Min Mat Fac Low Low Dat Pro Fac Ext Cet Arc Fac Fac Used RIF Installer . | . . . . . . . . . . . . . . . . . Robots Hacked . | . . . . . . . . . . . . . . . . . Non-combat . | . . . . . . . . . . . . . . . . . Combat . | . . . . . . . . . . . . . . . . . Robot Hacks Applied . | . . . . . . . . . . . . . . . . . Relay Couplers Released . | . . . . . . . . . . . . . . . . . Fabnet Peak Effective % . | . . . . . . . . . . . . . . . . . Robots Rewired 12 | . . . . . . . . . . . . 12 . . . . Allies Hacked . | . . . . . . . . . . . . . . . . . Hacks Repelled . | . . . . . . . . . . . . . . . . . Allies | -11 -10 -10 -10 -9 -8 -7 -7 -7 -7 -6 -6 -6 -6 -6 -5 -4 -------- Run | Jun Mat Min Exi Min Mat Fac Low Low Dat Pro Fac Ext Cet Arc Fac Fac Total Allies 27 | . . 3 . . . . . . . 1 . 18 5 . . . Largest Group 8 | . . 3 1 . . . . . . 1 1 8 7 6 6 6 Highest-Rated Group 511 | . . 77 31 . . . . . . 96 96 345 511 511 511 511 Highest-Rated Ally 159 | . . 31 31 . . . . . . 96 96 159 159 96 96 96 Total Orders . | . . . . . . . . . . . . . . . . . Ally Attacks 292 | . . 9 . . . . . . . 13 25 81 87 21 19 37 Total Damage 9263 | . . 140 . . . . . . . 375 839 2332 1932 757 831 2057 Kills 67 | . . 2 . . . . . . . 3 6 21 11 4 6 14 Allies Corrupted . | . . . . . . . . . . . . . . . . . Allies Melted 1 | . . . . . . . . . . . . 1 . . . . Intel | -11 -10 -10 -10 -9 -8 -7 -7 -7 -7 -6 -6 -6 -6 -6 -5 -4 ------- Run | Jun Mat Min Exi Min Mat Fac Low Low Dat Pro Fac Ext Cet Arc Fac Fac Robot Analysis Total 1 | . . . . . . 1 . . . . . . . . . . Derelict Logs Recovered 2 | . . 1 . . . . . 1 . . . . . . . . Drone Launches . | . . . . . . . . . . . . . . . . . Drone Recoveries . | . . . . . . . . . . . . . . . . . Exploration | -11 -10 -10 -10 -9 -8 -7 -7 -7 -7 -6 -6 -6 -6 -6 -5 -4 ------------- Run | Jun Mat Min Exi Min Mat Fac Low Low Dat Pro Fac Ext Cet Arc Fac Fac Turns Passed 8271 | 41 625 569 44 12 890 1104 583 523 102 409 374 1219 462 137 497 680 Spaces Moved 5551 | 33 432 509 45 13 631 779 461 416 88 325 186 651 198 81 293 410 Core 2 | 2 . . . . . . . . . . . . . . . . Treads 224 | . . . . . 3 123 . . . . 79 19 . . . . Legs 1140 | . . . . . . . . . . . . 158 198 81 293 410 Wheels 4185 | 31 432 509 45 13 628 656 461 416 88 325 107 474 . . . . Hover . | . . . . . . . . . . . . . . . . . Flight . | . . . . . . . . . . . . . . . . . Fastest Speed 50 | 50 90 100 100 100 90 100 115 115 115 115 115 90 120 120 120 120 Average Speed 118 | 86 100 100 100 100 95 113 115 115 115 115 172 126 174 142 151 124 Slowest Speed 250 | 90 115 100 100 100 240 250 115 115 115 115 250 250 190 190 190 190 Overloaded Moves . | . . . . . . . . . . . . . . . . . Propulsion Burnouts . | . . . . . . . . . . . . . . . . . Robots Hopped . | . . . . . . . . . . . . . . . . . Cave-ins Triggered . | . . . . . . . . . . . . . . . . . Exploration Rate (%) 46 | 3 64 97 10 9 50 28 73 69 75 59 9 61 82 80 7 10 Regions Visited 16 Branch Regions 10 Pre-discovered Areas 1 | . . . . . . . . . 1 . . . . . . . Known Exits Taken 1 | . . . . . . 1 . . . . . . . . . . Unknown Exits Taken 15 | 1 1 1 1 1 1 . 1 1 1 1 1 1 1 1 1 . Scrap Searched 6 | . . 2 . . . . 3 1 . . . . . . . . Spaces Dug 42 | . . . . . . 11 . . . 8 4 11 . . 4 4 Terrain Destroyed 238 | . 4 . . . 8 15 37 12 . 8 4 18 57 . 7 68 Melee 18 | . . . . . . 5 . . . . 4 1 . . 4 4 Projectile 29 | . . . . . . . . . . . . 10 4 . 3 12 AOE 190 | . 4 . . . 8 10 37 12 . 8 . 6 53 . . 52 Terrain Rammed . | . . . . . . . . . . . . . . . . . Walls Destroyed . | . . . . . . . . . . . . . . . . . Machines Disabled . | . . . . . . . . . . . . . . . . . Actions | -11 -10 -10 -10 -9 -8 -7 -7 -7 -7 -6 -6 -6 -6 -6 -5 -4 --------- Run | Jun Mat Min Exi Min Mat Fac Low Low Dat Pro Fac Ext Cet Arc Fac Fac Total 6723 | 42 547 560 44 12 817 918 506 450 88 339 227 954 258 102 328 531 Wait 397 | . 48 44 . . 72 38 22 18 . 1 6 67 7 3 10 61 Move 5535 | 32 431 508 44 12 630 778 460 415 87 324 185 650 197 80 292 410 Hop . | . . . . . . . . . . . . . . . . . Pick Up 85 | 4 12 . . . 18 8 7 1 . . 5 12 5 1 3 9 Fast Attach 48 | 6 5 1 . . 8 7 1 . . . 1 7 2 2 3 5 Attach 33 | . 2 . . . 7 4 2 . . . 1 7 6 . 1 3 Detach 11 | . 4 . . . 3 1 1 . . . . 1 . . 1 . Swap 104 | . 4 4 . . 15 25 4 8 1 3 5 12 4 6 6 7 Drop 85 | . 3 . . . 19 13 3 2 . . 6 13 2 8 3 13 Fire 262 | . 38 3 . . 45 38 6 2 . 11 5 54 35 2 5 18 Melee 23 | . . . . . . 6 . 3 . . 4 1 . . 4 5 Ram . | . . . . . . . . . . . . . . . . . Kick . | . . . . . . . . . . . . . . . . . Crush . | . . . . . . . . . . . . . . . . . Escape Stasis 16 | . . . . . . . . . . . . 16 . . . . Rewire 124 | . . . . . . . . 1 . . 9 114 . . . . Trap . | . . . . . . . . . . . . . . . . . Miscellaneous . | . . . . . . . . . . . . . . . . . Route ------- -11/Junkyard -10/Materials (discovered 3 exits: [*Mat x2] / [*Min]) -10/Mines (discovered 3 exits: [*Mat x2] / [*Exi]) -10/Exiles -9/Mines -8/Materials -7/Factory -7/Lower Caves (discovered 2 exits: *Low / *Zio) -7/Lower Caves (discovered 2 exits: [*Fac] / *Dat) -7/Data Miner -6/Proximity Caves -6/Factory (discovered 2 exits: Low / *Ext) -6/Extension (discovered 2 exits: [*Fac] / *Cet) -6/Cetus -6/Archives (discovered 3 exits: [*Fac] / [*Hub x2]) -5/Factory -4/Factory History --------- Turn | Location | Event 20 | -11/Junkyard | Discovered new exit (range 16) 42 | -11/Junkyard | Entered Materials 197 | -10/Materials | Discovered new exit (range 9) 301 | -10/Materials | Build established: Mutant 350 | -10/Materials | Discovered new exit (range 9) 518 | -10/Materials | Discovered new exit (range 7) 667 | -10/Materials | Entered Mines 700 | -10/Mines | Found a hidden stash of uninstalled traps 707 | -10/Mines | Learned Materials interactive machine intel 711 | -10/Mines | Received a Mining Laser from a helpful Derelict 720 | -10/Mines | Met a Derelict bent on vengeance 781 | -10/Mines | Discovered new exit (range 6) 798 | -10/Mines | Found a damaged Exp. Sensor Array with a note attached 800 | -10/Mines | Found Prototype Device 800 | -10/Mines | Identified Exp. Sensor Array 881 | -10/Mines | Deemed a non-threat by the Exiles lab entrance 881 | -10/Mines | Discovered new exit (range 5) 1120 | -10/Mines | Discovered new exit (range 8) 1236 | -10/Mines | Entered Exiles 1236 | -10/Exiles | Accompanied by 1 ally 1249 | -10/Exiles | Discovered new exit (range 15) 1261 | -10/Exiles | Met 8R-AWN 1266 | -10/Exiles | Led the pair of lost Derelicts to a safe place 1280 | -10/Exiles | Entered Mines 1290 | -9/Mines | Discovered new exit (range 2) 1292 | -9/Mines | Entered Materials 1292 | -8/Materials | Evolved 4 slots: Propulsion x1, Utility x2, Weapon x1 1293 | -8/Materials | Loaded intel: 19 interactive machine locations 1600 | -8/Materials | Build established: Skirmisher 2157 | -8/Materials | Discovered new exit (range 16) 2165 | -8/Materials | Garrison activated, responded to threat 2182 | -8/Materials | Entered Factory 2182 | -7/Factory | Evolved 2 slots: Utility x2 2616 | -7/Factory | Build established: Tank 2719 | -7/Factory | Garrison activated, responded to threat 3233 | -7/Factory | Discovered new exit (range 8) 3286 | -7/Factory | Identified exit to Lower Caves 3286 | -7/Factory | Entered Lower Caves 3315 | -7/Lower Caves | A Derelict revealed a hidden shortcut to a safe place 3318 | -7/Lower Caves | Identified exit to Zion 3703 | -7/Lower Caves | Spotted B-75 Beast 3822 | -7/Lower Caves | Discovered new exit (range 14) 3825 | -7/Lower Caves | Attracted the attention of an 0b10 checkpoint 3869 | -7/Lower Caves | Entered another Lower Caves area 3901 | -7/Lower Caves | Discovered new exit (range 15) 4265 | -7/Lower Caves | Discovered new exit (range 12) 4340 | -7/Lower Caves | Acquired the password to a Derelict Tinkerer's latest research 4354 | -7/Lower Caves | Found Prototype Special Weapon 4392 | -7/Lower Caves | Entered Data Miner 4392 | -7/Data Miner | Discovered new exit (range 6) 4414 | -7/Data Miner | Met Data Miner 4448 | -7/Data Miner | Learned location of Section 7 (-2) 4448 | -7/Data Miner | Acquired the access code to Warlord's prototype stash 4467 | -7/Data Miner | Received God Mode back door access code from Data Miner 4494 | -7/Data Miner | Entered Proximity Caves 4542 | -6/Proximity Caves | Spotted B-75 Beast 4544 | -6/Proximity Caves | Escorted by Enhanced Grunt 4861 | -6/Proximity Caves | Discovered new exit (range 5) 4903 | -6/Proximity Caves | Entered Factory 4903 | -6/Factory | Accompanied by 1 ally 4903 | -6/Factory | Evolved 2 slots: Utility x2 4904 | -6/Factory | Identified exit to Lower Caves 5230 | -6/Factory | Discovered new exit (range 6) 5277 | -6/Factory | Entered Extension 5277 | -6/Extension | Accompanied by 1 ally 5308 | -6/Extension | Rescued a captive Derelict 5334 | -6/Extension | Rescued a captive Derelict 5368 | -6/Extension | Rescued a captive Derelict 5377 | -6/Extension | Rescued a captive Derelict 5760 | -6/Extension | Spotted B-75 Beast 5834 | -6/Extension | Spotted B-75 Beast 6115 | -6/Extension | Energy Cycler disabled 6115 | -6/Extension | Rescued a captive Derelict 6117 | -6/Extension | Rescued a captive Derelict 6123 | -6/Extension | Rescued a captive Derelict 6131 | -6/Extension | Rescued a captive Derelict 6144 | -6/Extension | Lost 3 parts (2n1u) 6177 | -6/Extension | Rescued A7 6180 | -6/Extension | Identified Molecular Deconstructor 6227 | -6/Extension | Disrupted transfer network 6457 | -6/Extension | Discovered new exit (range 10) 6459 | -6/Extension | Discovered new exit (range 6) 6496 | -6/Extension | Entered Cetus 6496 | -6/Cetus | Accompanied by 7 allies (A7) 6501 | -6/Cetus | Acquired a Cetus Manufacturing Module code from A7 6513 | -6/Cetus | Spotted Cetus Guard 6513 | -6/Cetus | Spotted Cetus Guard 6516 | -6/Cetus | Spotted Cetus Guard 6519 | -6/Cetus | Spotted Cetus Guard 6527 | -6/Cetus | Allies destroyed Cetus Guard 6539 | -6/Cetus | Destroyed Cetus Guard 6542 | -6/Cetus | Allies destroyed Cetus Guard 6550 | -6/Cetus | Destroyed Cetus Guard 6609 | -6/Cetus | Lost 8 parts (1p2n2u3w) 6767 | -6/Cetus | Started Cetus Manufacturing Module 6781 | -6/Cetus | Escorted A7 to Cetus Mainframe 6792 | -6/Cetus | Manufactured an Enhanced Grunt 6816 | -6/Cetus | Extracted ID and sensor layout for unrecognized location from A7's data core 6817 | -6/Cetus | Manufactured an Enhanced Grunt 6842 | -6/Cetus | Manufactured an Enhanced Grunt 6867 | -6/Cetus | Manufactured an Enhanced Grunt 6892 | -6/Cetus | Manufactured an Enhanced Grunt 6917 | -6/Cetus | Build established: Scavenger-Tank 6929 | -6/Cetus | Discovered new exit (range 16) 6958 | -6/Cetus | Entered Archives 6958 | -6/Archives | Accompanied by 6 allies 7032 | -6/Archives | Discovered new exit (range 16) 7045 | -6/Archives | Discovered new exit (range 16) 7060 | -6/Archives | Unable to access archive contents 7063 | -6/Archives | Discovered new exit (range 15) 7095 | -6/Archives | Entered Factory 7095 | -5/Factory | Accompanied by 6 allies 7095 | -5/Factory | Evolved 2 slots: Power x1, Propulsion x1 7228 | -5/Factory | Discovered new exit (range 13) 7592 | -5/Factory | Entered another Factory area 7592 | -4/Factory | Accompanied by 6 allies 7592 | -4/Factory | Evolved 2 slots: Utility x1, Weapon x1 7917 | -4/Factory | Build established: Scavenger-Gunner 8077 | -4/Factory | Found Prototype Device 8272 | -4/Factory | Self-destructed Last Messages --------------- 08261_ Penetrated by Slug. 08262_ Slug penetrates H-77 Assassin. 08262_ K-01 Serf collects debris. 08262_ Penetrated by Slug. 08262_ K-01 Serf collects debris. 08265_ Penetrated by Slug. 08265_ Slug penetrates Wall. 08265_ K-01 Serf collects debris. 08265_ Chain reaction triggered in Lgt. Antimatter Reactor. 08265_ Slug penetrates H-77 Assassin. 08266_ Lgt. Angular Momentum Engine destroyed. 08267_ Penetrated by Slug. 08268_ The unstable cave ceiling collapses. 08268_ K-01 Serf collects debris. 08268_ Penetrated by Slug. 08269_ Lrn. Proton Cannon destroyed. 08270_ K-01 Serf collects debris. 08270_ Slug penetrates H-77 Assassin. 08271_ Penetrated by Slug. 08272_ K-01 Serf collects debris. Map ----- +----------------------------------------------------+ | ????????????????????????????????????????????? | | ????????????????????????????????????????????? | | ????????????????????????????????????????????? | | ????????????????????????????????????????????? | | ????????????????????????????????????????????? | | ????????????????????????????????????????????? | | ????????????????????????????????????????????? | | ????????????????????????????????????????????? | | ????????????????????????????????????????????? | | ?????????????????????????? ????????????????? | | ?????????????????????????? "???????????????? | | ?????????????????????????? """""""?????????? | | ?????????????????????????? ???????? | | ?????????????????????????? ^ ???????? | | ??????????????##########?? ????????? | | ??????????????# # # #?? ?????????? | | ?????????????## # ##### h ?????????? | | ?????????????# # # #k # h ?????????? | | ?????????????# = ;;;??????????? | | ?????????????# k ; ???????????? | | ?????????????### = #????????????? | | ?????????????# # ! * # "??????????? | | ?????????????## !%= ; "??????????? | | ??????????????# | +????????????? | | ??????????????## #????????????? | | ???????????????# @ #????????????? | | ???????????????#### ## #????????????? | | ???????????????# !%=! !; " ?????????? | | ???????????????# %![[ # #????????????? | | ???????????????# %= ]# #????????????? | | ???????????????#! ; #????????????? | | ???????????????# "" " ; #????????????? | | ???????????????# """ "" # #????????????? | | ???????????????# """" " # #????????????? | | ???????????????# """"" # w#????????????? | | ???????????????#########;# #????????????? | | ????????????????????????## #????????????? | | ?????????????????????????# #########????? | | ????????????###??######### # ?????? | | ????????????# ?? # # """ ""???? | | ????????????# """""" # # """ """??? | | ????????????# """""" # # """ """ # | | ????????????# """""" # # ? | | ????????????# """""" # # """ ""???? | | ????????????# + + """ ""???? | | ????????????# # # """ "????? | | ????????????#^ [= # # ! ???? | | ????????????#^""" !!== # # ?? | | ????????????# "T =%% [[ ### ### # | | ????????????# """[*=!!] #?# #?# # | +----------------------------------------------------+ Best States ------------- Heat Dissipation 62 Energy Generation 38 Energy Capacity 300 Matter Stores 300 Matter Capacity 300 Sight Range 16 Robot Scan Range 20 Terrain Scan Density 10 Power Amplification 30 Additional Mass Support 12 Base Temperature (-) 200 Corruption Block 15 Armor Coverage 675 Utility Shielding 66 Weapon Cycling 15 Phase Shifting 10 Evasion (%) 65 Recoil Reduction 6 Kinecelleration 40 Defensive Hacking 11 Item Schematics ----------------- Combat Drone Bay | -7/Data Miner | Free Lgt. Regenerative Plating | -7/Data Miner | Free Biomechanical Wings | -7/Data Miner | Free Exp. Utility Shielding | -7/Data Miner | Free Imp. Heavy Laser | -7/Data Miner | Free Field Propulsion Drive | -7/Data Miner | Free Mni. Drone Bay | -7/Data Miner | Free Lrn. Proton Cannon | -7/Data Miner | Free Point Defense System | -7/Data Miner | Free Hvy. Disruptor Cannon | -7/Data Miner | Free Micro-nuke Launcher | -7/Data Miner | Free Robot Schematics ------------------ L-41 Fighter | -7/Data Miner | Free A-15 Conveyor | -7/Data Miner | Free S-27 Virus | -7/Data Miner | Free E-15 Imp | -7/Data Miner | Free G-50 Soldier | -7/Data Miner | Free Fabricated ------------ Nothing Alien Tech Used ----------------- None Achievements -------------- None Challenges ------------ None Game ------ Seed ShieldArmorStick Manual? 0 Play Time 02:42:11 Cumulative 151.5 hours Start 2023.03.11 @ 20:28:42 End 2023.03.16 @ 20:09:07 Sessions 5 Manual Loads 0 Difficulty Rogue Special Mode None Game No. 86 Rogue 86 Adventurer 0 Explorer 0 Win Type - Total 0 Types 0/0/0/0/0/0/0/0/0 Lore% 50 Gallery% 60 Achievement% 57 Wizard Run 0 Options --------- ASCII 0 Keyboard 1 Movement Numpad Keybinds 1 Fullscreen 1 Font 18/SmallcapsGlow Map View 76x50 Tactical HUD 1 Map Filters NONE Filters NONE Steam 1 RUN: 8ba03a81-f12e-4f5d-afb4-2814d7952cf9